[Event "*** Titled Tuesday Blitz"]
[Site "Chess.com"]
[Date "2019.09.03"]
[Round "3"]
[White "HarryCun"]
[Black "Joshukid"]
[Result "0-1"]
[WhiteElo "2104"]
[BlackElo "2637"]
[TimeControl "180+2"]
[EndTime "15:39:06 PDT"]
[Termination "Joshukid won by checkmate"]

1. d4 {[%clk 0:03:01.9]} 1... Nf6 {[%clk 0:02:58.8]} 2. Nf3 {[%clk 0:03:01.2]}
2... d5 {[%clk 0:02:59.4]} 3. c4 {[%clk 0:03:01.3]} 3... e6 {[%clk 0:03:00.4]}
4. g3 {[%clk 0:03:02.3]} 4... Be7 {[%clk 0:03:00.9]} 5. Bg2 {[%clk 0:03:03.5]}
5... O-O {[%clk 0:03:02.6]} 6. O-O {[%clk 0:03:05]} 6... dxc4 {[%clk 0:03:04]}
7. Qc2 {[%clk 0:03:05.6]} 7... a6 {[%clk 0:03:05.6]} 8. Qxc4 {[%clk 0:03:05.1]}
8... b5 {[%clk 0:03:06.8]} 9. Qc2 {[%clk 0:03:06.6]} 9... Bb7 {[%clk 0:03:08.4]}
10. Rd1 {[%clk 0:03:04.6]} 10... Be4 {[%clk 0:02:55.3]} 11. Qd2 {[%clk
0:02:58.6]} 11... Nd5 {[%clk 0:02:29.7]} 12. Nc3 {[%clk 0:02:49.3]} 12... Nxc3
{[%clk 0:02:30.3]} 13. Qxc3 {[%clk 0:02:36.9]} 13... Nd7 {[%clk 0:02:25.3]} 14.
Bf4 {[%clk 0:02:23.2]} 14... Rc8 {[%clk 0:02:24.4]} 15. Rac1 {[%clk 0:02:14.7]}
15... c6 {[%clk 0:02:25.4]} 16. Ne5 {[%clk 0:02:12.4]} 16... Bxg2 {[%clk
0:02:23.4]} 17. Kxg2 {[%clk 0:02:11.3]} 17... Nxe5 {[%clk 0:02:24.8]} 18. Bxe5
{[%clk 0:02:07.9]} 18... Qd5+ {[%clk 0:02:22.1]} 19. f3 {[%clk 0:02:01.5]} 19...
g5 {[%clk 0:02:00.6]} 20. e4 {[%clk 0:01:58.6]} 20... b4 {[%clk 0:01:35.8]} 21.
exd5 {[%clk 0:01:42.6]} 21... bxc3 {[%clk 0:01:36]} 22. d6 {[%clk 0:01:35.4]}
22... Bd8 {[%clk 0:01:30]} 23. Rxc3 {[%clk 0:01:35]} 23... f6 {[%clk 0:01:19]}
24. d7 {[%clk 0:01:35.4]} 24... Ra8 {[%clk 0:01:20]} 25. Bd6 {[%clk 0:01:32.9]}
25... Rf7 {[%clk 0:01:21.3]} 26. Rxc6 {[%clk 0:01:31.6]} 26... Rxd7 {[%clk
0:01:22.9]} 27. b4 {[%clk 0:01:28.5]} 27... Kf7 {[%clk 0:01:21]} 28. Bc5 {[%clk
0:01:27.2]} 28... Be7 {[%clk 0:01:11.7]} 29. Re1 {[%clk 0:01:25.9]} 29... Bxc5
{[%clk 0:01:12.3]} 30. dxc5 {[%clk 0:01:22.6]} 30... Rd2+ {[%clk 0:01:13.3]} 31.
Kh3 {[%clk 0:01:21]} 31... e5 {[%clk 0:01:11.7]} 32. a4 {[%clk 0:01:17.3]} 32...
h5 {[%clk 0:00:50.8]} 33. Rd6 {[%clk 0:00:56]} 33... Rxd6 {[%clk 0:00:49]} 34.
cxd6 {[%clk 0:00:55.6]} 34... Ke6 {[%clk 0:00:50.5]} 35. Rd1 {[%clk 0:00:55.3]}
35... Kd7 {[%clk 0:00:51.7]} 36. Rd5 {[%clk 0:00:53.5]} 36... Rb8 {[%clk
0:00:51.2]} 37. b5 {[%clk 0:00:54]} 37... axb5 {[%clk 0:00:52.2]} 38. axb5
{[%clk 0:00:55.9]} 38... Ke6 {[%clk 0:00:43.5]} 39. Rd2 {[%clk 0:00:39.9]} 39...
Kd7 {[%clk 0:00:43]} 40. Rd5 {[%clk 0:00:36.7]} 40... Rb6 {[%clk 0:00:44.5]} 41.
Kg2 {[%clk 0:00:30.5]} 41... Rxd6 {[%clk 0:00:42.5]} 42. Rxd6+ {[%clk
0:00:29.5]} 42... Kxd6 {[%clk 0:00:42.3]} 43. Kf2 {[%clk 0:00:29.6]} 43... Kc5
{[%clk 0:00:38.8]} 44. Ke3 {[%clk 0:00:30.1]} 44... f5 {[%clk 0:00:28]} 45. g4
{[%clk 0:00:22]} 45... hxg4 {[%clk 0:00:23.1]} 46. fxg4 {[%clk 0:00:23.5]} 46...
f4+ {[%clk 0:00:24]} 47. Ke4 {[%clk 0:00:23.6]} 47... Kxb5 {[%clk 0:00:23]} 48.
Kf3 {[%clk 0:00:21.3]} 48... Kc5 {[%clk 0:00:22.3]} 49. Ke4 {[%clk 0:00:19.7]}
49... Kd6 {[%clk 0:00:22.8]} 50. Kf3 {[%clk 0:00:20]} 50... Kd5 {[%clk
0:00:24.2]} 51. Kf2 {[%clk 0:00:21.4]} 51... e4 {[%clk 0:00:25.5]} 52. Ke2
{[%clk 0:00:21.9]} 52... Kd4 {[%clk 0:00:23.7]} 53. Kf2 {[%clk 0:00:22.9]} 53...
e3+ {[%clk 0:00:24.6]} 54. Ke2 {[%clk 0:00:23.6]} 54... Ke4 {[%clk 0:00:25.7]}
55. Kf1 {[%clk 0:00:23.9]} 55... f3 {[%clk 0:00:27.2]} 56. Ke1 {[%clk
0:00:24.8]} 56... Kf4 {[%clk 0:00:28.6]} 57. h4 {[%clk 0:00:25.4]} 57... gxh4
{[%clk 0:00:29.5]} 58. g5 {[%clk 0:00:26.9]} 58... Kxg5 {[%clk 0:00:30.8]} 59.
Kf1 {[%clk 0:00:28.8]} 59... h3 {[%clk 0:00:31]} 60. Ke1 {[%clk 0:00:30.7]}
60... h2 {[%clk 0:00:32.3]} 61. Kf1 {[%clk 0:00:32.6]} 61... h1=Q# {[%clk
0:00:33.8]} 0-1

[Event "*** Titled Tuesday Blitz"]
[Site "Chess.com"]
[Date "2019.09.03"]
[Round "3"]
[White "imdvb6307"]
[Black "mitrabhaa"]
[Result "0-1"]
[WhiteElo "2405"]
[BlackElo "2649"]
[TimeControl "180+2"]
[EndTime "15:39:13 PDT"]
[Termination "mitrabhaa won by resignation"]

1. c4 {[%clk 0:03:01.9]} 1... Nf6 {[%clk 0:02:59.7]} 2. Nc3 {[%clk 0:03:02.1]}
2... c5 {[%clk 0:02:56.6]} 3. Nf3 {[%clk 0:02:58.9]} 3... d5 {[%clk 0:02:56.2]}
4. cxd5 {[%clk 0:02:59.3]} 4... Nxd5 {[%clk 0:02:56.9]} 5. g3 {[%clk 0:03:00.3]}
5... g6 {[%clk 0:02:54.2]} 6. d3 {[%clk 0:03:01.1]} 6... Bg7 {[%clk 0:02:55]} 7.
Bd2 {[%clk 0:03:02.4]} 7... Nc6 {[%clk 0:02:55.4]} 8. Bg2 {[%clk 0:03:02.9]}
8... Nc7 {[%clk 0:02:56.4]} 9. Qc1 {[%clk 0:02:44.8]} 9... O-O {[%clk
0:02:50.4]} 10. Bh6 {[%clk 0:02:44.2]} 10... b6 {[%clk 0:02:51.3]} 11. h4 {[%clk
0:02:25.1]} 11... f6 {[%clk 0:01:49.3]} 12. h5 {[%clk 0:02:06.3]} 12... Rf7
{[%clk 0:01:33.1]} 13. hxg6 {[%clk 0:01:55.1]} 13... hxg6 {[%clk 0:01:31.7]} 14.
Nh4 {[%clk 0:01:51]} 14... g5 {[%clk 0:01:28.7]} 15. Bxg7 {[%clk 0:01:41]} 15...
Rxg7 {[%clk 0:01:29.6]} 16. Bxc6 {[%clk 0:01:38.9]} 16... gxh4 {[%clk
0:01:30.4]} 17. Bxa8 {[%clk 0:00:51.4]} 17... Nxa8 {[%clk 0:01:19.8]} 18. Rxh4
{[%clk 0:00:52.1]} 18... Nc7 {[%clk 0:01:20.7]} 19. Qh6 {[%clk 0:00:50.7]} 19...
Kf7 {[%clk 0:01:17.9]} 20. Qh5+ {[%clk 0:00:38.2]} 20... Rg6 {[%clk 0:01:13.1]}
21. f4 {[%clk 0:00:35]} 21... f5 {[%clk 0:01:07.6]} 22. O-O-O {[%clk 0:00:25.9]}
22... Ne8 {[%clk 0:01:04]} 23. Qf3 {[%clk 0:00:25.5]} 23... Nf6 {[%clk
0:01:01.2]} 24. e4 {[%clk 0:00:26.3]} 24... Bb7 {[%clk 0:01:01.1]} 25. Qf2
{[%clk 0:00:27.4]} 25... Qd7 {[%clk 0:00:51.7]} 26. e5 {[%clk 0:00:24]} 26...
Ng4 {[%clk 0:00:52.5]} 27. Qe2 {[%clk 0:00:21.8]} 27... Qd4 {[%clk 0:00:48.2]}
28. Kb1 {[%clk 0:00:18.5]} 28... Ke6 {[%clk 0:00:44.7]} 29. Rd2 {[%clk
0:00:16.8]} 29... a6 {[%clk 0:00:40.2]} 30. Nd1 {[%clk 0:00:17]} 30... b5 {[%clk
0:00:35.8]} 31. Nf2 {[%clk 0:00:17.4]} 31... Nxf2 {[%clk 0:00:32.4]} 32. Qxf2
{[%clk 0:00:18.4]} 32... Qxf2 {[%clk 0:00:33.8]} 33. Rxf2 {[%clk 0:00:19.4]}
33... Rxg3 {[%clk 0:00:35.1]} 34. Rh6+ {[%clk 0:00:20.4]} 34... Kd7 {[%clk
0:00:35.7]} 35. Kc2 {[%clk 0:00:19.5]} 35... Bd5 {[%clk 0:00:36.4]} 36. b3
{[%clk 0:00:20.2]} 36... Rg1 {[%clk 0:00:36.2]} 37. Kb2 {[%clk 0:00:18.9]} 37...
e6 {[%clk 0:00:36]} 38. Rh7+ {[%clk 0:00:19.5]} 38... Kc6 {[%clk 0:00:37.1]} 39.
Rfh2 {[%clk 0:00:19.1]} 39... Rd1 {[%clk 0:00:36.4]} 40. Ra7 {[%clk 0:00:17.8]}
40... Kb6 {[%clk 0:00:36.4]} 41. Rd7 {[%clk 0:00:18.2]} 41... Rxd3 {[%clk
0:00:36.5]} 42. Kc2 {[%clk 0:00:18]} 42... Rd4 {[%clk 0:00:35.8]} 43. Rh6 {[%clk
0:00:18.6]} 43... Be4+ {[%clk 0:00:36.2]} 44. Kc3 {[%clk 0:00:19.1]} 44... Rxd7
{[%clk 0:00:37]} 45. Rxe6+ {[%clk 0:00:18.9]} 45... Ka5 {[%clk 0:00:38]} 46. a3
{[%clk 0:00:19.4]} 46... b4+ {[%clk 0:00:36.5]} 47. Kc4 {[%clk 0:00:15.3]} 47...
bxa3 {[%clk 0:00:29.6]} 48. Rd6 {[%clk 0:00:15.6]} 48... Rxd6 {[%clk 0:00:24.9]}
49. exd6 {[%clk 0:00:16.4]} 49... Kb6 {[%clk 0:00:26.1]} 0-1

[Event "*** Titled Tuesday Blitz"]
[Site "Chess.com"]
[Date "2019.09.03"]
[Round "3"]
[White "gena217"]
[Black "Renier07"]
[Result "1-0"]
[WhiteElo "2908"]
[BlackElo "2595"]
[TimeControl "180+2"]
[EndTime "15:39:26 PDT"]
[Termination "gena217 won on time"]

1. e4 {[%clk 0:03:01.9]} 1... c5 {[%clk 0:03:00.9]} 2. Nf3 {[%clk 0:03:02.8]}
2... e6 {[%clk 0:03:02.4]} 3. d4 {[%clk 0:03:03.9]} 3... cxd4 {[%clk 0:03:04]}
4. Nxd4 {[%clk 0:03:05.8]} 4... Nc6 {[%clk 0:03:05.4]} 5. Nb5 {[%clk 0:03:07]}
5... d6 {[%clk 0:03:06.4]} 6. c4 {[%clk 0:03:07.9]} 6... Nf6 {[%clk 0:03:06.1]}
7. N1c3 {[%clk 0:03:09.2]} 7... a6 {[%clk 0:03:06.9]} 8. Na3 {[%clk 0:03:10.8]}
8... Be7 {[%clk 0:03:06.6]} 9. Be2 {[%clk 0:03:12.4]} 9... b6 {[%clk 0:03:07.9]}
10. O-O {[%clk 0:03:13.7]} 10... Bb7 {[%clk 0:03:09.5]} 11. Be3 {[%clk
0:03:14.9]} 11... Nb8 {[%clk 0:03:10.5]} 12. f3 {[%clk 0:03:11.3]} 12... Nbd7
{[%clk 0:03:11.2]} 13. Qb3 {[%clk 0:03:08.8]} 13... Qc7 {[%clk 0:03:12.5]} 14.
Rad1 {[%clk 0:03:08.6]} 14... Rb8 {[%clk 0:03:10.6]} 15. Rd2 {[%clk 0:03:08.3]}
15... O-O {[%clk 0:03:10.4]} 16. Rc1 {[%clk 0:03:05.9]} 16... Rfe8 {[%clk
0:03:11.1]} 17. Qd1 {[%clk 0:03:06.6]} 17... Bf8 {[%clk 0:03:11.4]} 18. Nc2
{[%clk 0:03:06.7]} 18... Rbd8 {[%clk 0:03:01.5]} 19. Kh1 {[%clk 0:03:05.9]}
19... Qb8 {[%clk 0:03:01.8]} 20. Qg1 {[%clk 0:03:07]} 20... Ba8 {[%clk
0:03:01.4]} 21. Bf1 {[%clk 0:02:57.6]} 21... Rc8 {[%clk 0:02:45.5]} 22. Rcd1
{[%clk 0:02:50.1]} 22... g6 {[%clk 0:02:44.9]} 23. Qf2 {[%clk 0:02:38.8]} 23...
Bc6 {[%clk 0:02:33]} 24. Nb4 {[%clk 0:02:12.3]} 24... Bb7 {[%clk 0:02:33.5]} 25.
Bf4 {[%clk 0:02:05.5]} 25... a5 {[%clk 0:02:10.5]} 26. Nc2 {[%clk 0:01:58.3]}
26... e5 {[%clk 0:01:51.9]} 27. Be3 {[%clk 0:01:59.3]} 27... Nc5 {[%clk
0:01:49.1]} 28. Na3 {[%clk 0:01:59.9]} 28... Re6 {[%clk 0:01:17.8]} 29. Nab5
{[%clk 0:02:00.2]} 29... Ba6 {[%clk 0:01:10.1]} 30. b3 {[%clk 0:01:49.8]} 30...
h5 {[%clk 0:01:05.6]} 31. Bg5 {[%clk 0:01:42.6]} 31... Kh7 {[%clk 0:01:00.1]}
32. g3 {[%clk 0:01:41.6]} 32... Rce8 {[%clk 0:00:37.1]} 33. Bh3 {[%clk
0:01:31.2]} 33... Ng8 {[%clk 0:00:27.9]} 34. Bxe6 {[%clk 0:01:31.4]} 34... Nxe6
{[%clk 0:00:29.2]} 35. Be3 {[%clk 0:01:31.2]} 35... Rd8 {[%clk 0:00:15.3]} 36.
Bxb6 {[%clk 0:01:29.7]} 36... Rd7 {[%clk 0:00:16.9]} 37. Bxa5 {[%clk 0:01:26]}
37... Nf6 {[%clk 0:00:17.7]} 38. Bb4 {[%clk 0:01:25.3]} 38... Bb7 {[%clk
0:00:16.6]} 39. Bxd6 {[%clk 0:01:25.1]} 39... Bxd6 {[%clk 0:00:16.8]} 40. Nxd6
{[%clk 0:01:26.8]} 40... Bc6 {[%clk 0:00:17.4]} 41. Ndb5 {[%clk 0:01:19.5]}
41... Rb7 {[%clk 0:00:14.4]} 42. a4 {[%clk 0:01:18.3]} 42... Qa8 {[%clk
0:00:15.7]} 43. Nd5 {[%clk 0:01:19.5]} 43... Bxb5 {[%clk 0:00:13.9]} 44. cxb5
{[%clk 0:01:18]} 44... Nxd5 {[%clk 0:00:13.9]} 45. Rxd5 {[%clk 0:01:19]} 45...
Rc7 {[%clk 0:00:14.5]} 46. Rxe5 {[%clk 0:01:11.6]} 46... Qc8 {[%clk 0:00:16]}
47. Red5 {[%clk 0:01:07.4]} 47... Rc3 {[%clk 0:00:16.2]} 48. b6 {[%clk
0:01:04.6]} 48... Qa6 {[%clk 0:00:14.2]} 49. a5 {[%clk 0:01:04.4]} 49... Rxb3
{[%clk 0:00:15.2]} 50. Qf1 {[%clk 0:01:01.2]} 50... Qc8 {[%clk 0:00:13.7]} 51.
Rd7 {[%clk 0:00:59.1]} 51... Kg7 {[%clk 0:00:13.5]} 52. b7 {[%clk 0:00:57.5]}
52... Qc2 {[%clk 0:00:11.9]} 53. a6 {[%clk 0:00:55.8]} 53... Ng5 {[%clk
0:00:13]} 54. R7d2 {[%clk 0:00:53.9]} 54... Qc6 {[%clk 0:00:11.9]} 55. Rd3
{[%clk 0:00:48.5]} 55... Rb2 {[%clk 0:00:12.4]} 56. Rb1 {[%clk 0:00:45.4]} 56...
Rc2 {[%clk 0:00:06.8]} 57. b8=Q {[%clk 0:00:45.1]} 57... Nxe4 {[%clk 0:00:03.3]}
58. Qe5+ {[%clk 0:00:42.3]} 58... Nf6 {[%clk 0:00:04.3]} 59. Rd6 {[%clk
0:00:42.2]} 1-0

[Event "*** Titled Tuesday Blitz"]
[Site "Chess.com"]
[Date "2019.09.03"]
[Round "3"]
[White "liczner"]
[Black "Mazanchenko_Dmitry"]
[Result "0-1"]
[WhiteElo "2700"]
[BlackElo "2242"]
[TimeControl "180+2"]
[EndTime "15:39:28 PDT"]
[Termination "Mazanchenko_Dmitry won by resignation"]

1. e4 {[%clk 0:03:00.8]} 1... c5 {[%clk 0:03:00.2]} 2. Nf3 {[%clk 0:02:59.7]}
2... d6 {[%clk 0:03:00.8]} 3. c3 {[%clk 0:02:58.7]} 3... Nf6 {[%clk 0:03:01.1]}
4. h3 {[%clk 0:02:59.5]} 4... Bd7 {[%clk 0:03:00.8]} 5. Bd3 {[%clk 0:02:59.2]}
5... c4 {[%clk 0:03:00.1]} 6. Bxc4 {[%clk 0:02:41]} 6... Nxe4 {[%clk 0:03:00]}
7. O-O {[%clk 0:01:49.8]} 7... e6 {[%clk 0:02:48.4]} 8. d4 {[%clk 0:01:45.9]}
8... d5 {[%clk 0:02:47.5]} 9. Bd3 {[%clk 0:01:46.5]} 9... Bd6 {[%clk 0:02:46]}
10. Re1 {[%clk 0:01:42.2]} 10... f5 {[%clk 0:02:45.2]} 11. Ne5 {[%clk
0:01:11.6]} 11... O-O {[%clk 0:02:26.5]} 12. f3 {[%clk 0:00:53]} 12... Bxe5
{[%clk 0:02:19.8]} 13. dxe5 {[%clk 0:00:50.4]} 13... Nc5 {[%clk 0:02:06.6]} 14.
Bf1 {[%clk 0:00:44]} 14... Nc6 {[%clk 0:01:56.9]} 15. Nd2 {[%clk 0:00:41.7]}
15... Qc7 {[%clk 0:01:46.3]} 16. Qe2 {[%clk 0:00:39]} 16... a6 {[%clk
0:01:37.6]} 17. Nb3 {[%clk 0:00:39.6]} 17... Nxb3 {[%clk 0:01:35]} 18. axb3
{[%clk 0:00:41.5]} 18... Qb6+ {[%clk 0:01:27.6]} 19. Be3 {[%clk 0:00:40.4]}
19... Qc7 {[%clk 0:01:11.2]} 20. Bc5 {[%clk 0:00:39.6]} 20... Rf7 {[%clk
0:01:04.4]} 21. b4 {[%clk 0:00:39.4]} 21... Na7 {[%clk 0:00:57]} 22. Qf2 {[%clk
0:00:33.9]} 22... Nc8 {[%clk 0:00:55.1]} 23. b5 {[%clk 0:00:26.7]} 23... b6
{[%clk 0:00:55.8]} 24. Bd4 {[%clk 0:00:27.8]} 24... a5 {[%clk 0:00:55.5]} 25.
Rec1 {[%clk 0:00:26.3]} 25... Rb8 {[%clk 0:00:43.5]} 26. c4 {[%clk 0:00:27.3]}
26... dxc4 {[%clk 0:00:38.7]} 27. Bxc4 {[%clk 0:00:29.2]} 27... Qd8 {[%clk
0:00:26.1]} 28. Rc3 {[%clk 0:00:21.5]} 28... Qe8 {[%clk 0:00:26.5]} 29. Qe2
{[%clk 0:00:19.8]} 29... Na7 {[%clk 0:00:25.7]} 30. Rxa5 {[%clk 0:00:13]} 30...
bxa5 {[%clk 0:00:25.4]} 31. Bxa7 {[%clk 0:00:14.5]} 31... Bxb5 {[%clk
0:00:24.7]} 32. Bxb8 {[%clk 0:00:13.9]} 32... Bxc4 {[%clk 0:00:22.8]} 33. Qxc4
{[%clk 0:00:15.1]} 33... Qxb8 {[%clk 0:00:23]} 34. Qxe6 {[%clk 0:00:15.4]} 34...
Qa7+ {[%clk 0:00:15.4]} 35. Kh2 {[%clk 0:00:14.6]} 35... h6 {[%clk 0:00:15]} 36.
Qg6 {[%clk 0:00:07]} 36... Rf8 {[%clk 0:00:11.2]} 37. e6 {[%clk 0:00:07.2]}
37... Qd4 {[%clk 0:00:09.2]} 38. Qg3 {[%clk 0:00:03.6]} 38... Re8 {[%clk
0:00:05.3]} 39. Rc7 {[%clk 0:00:04.3]} 39... Rxe6 {[%clk 0:00:04.7]} 40. Rb7
{[%clk 0:00:04.1]} 40... Qe5 {[%clk 0:00:05.6]} 41. Rb8+ {[%clk 0:00:04.1]}
41... Kh7 {[%clk 0:00:06]} 42. f4 {[%clk 0:00:04.1]} 42... Qxb8 {[%clk
0:00:03.6]} 43. Qf3 {[%clk 0:00:05.7]} 43... Qc7 {[%clk 0:00:04.3]} 44. Kg3
{[%clk 0:00:07.1]} 44... Qd7 {[%clk 0:00:05.1]} 45. h4 {[%clk 0:00:06.7]} 45...
Qe7 {[%clk 0:00:07]} 46. Kh2 {[%clk 0:00:07]} 46... Re3 {[%clk 0:00:08.2]} 47.
Qh5 {[%clk 0:00:08.3]} 47... Qe4 {[%clk 0:00:08.6]} 48. g3 {[%clk 0:00:05.7]}
48... Re2+ {[%clk 0:00:09.6]} 0-1

[Event "*** Titled Tuesday Blitz"]
[Site "Chess.com"]
[Date "2019.09.03"]
[Round "3"]
[White "popov_m"]
[Black "2nd_life"]
[Result "1-0"]
[WhiteElo "2616"]
[BlackElo "2376"]
[TimeControl "180+2"]
[EndTime "15:39:32 PDT"]
[Termination "popov_m won on time"]

1. e4 {[%clk 0:03:01.9]} 1... d5 {[%clk 0:02:57.3]} 2. exd5 {[%clk 0:02:59.7]}
2... Qxd5 {[%clk 0:02:59.2]} 3. Nc3 {[%clk 0:02:59.4]} 3... Qd6 {[%clk
0:03:00.3]} 4. d4 {[%clk 0:03:00.5]} 4... c6 {[%clk 0:03:01.3]} 5. Bd3 {[%clk
0:03:01.8]} 5... Nf6 {[%clk 0:03:01.8]} 6. Nge2 {[%clk 0:03:03.1]} 6... Bg4
{[%clk 0:02:39.9]} 7. f3 {[%clk 0:03:04]} 7... Bh5 {[%clk 0:02:39.6]} 8. Bf4
{[%clk 0:03:05.6]} 8... Qd8 {[%clk 0:02:38.9]} 9. O-O {[%clk 0:03:06.2]} 9...
Bg6 {[%clk 0:02:39.5]} 10. Ne4 {[%clk 0:03:05.6]} 10... Nbd7 {[%clk 0:02:33.8]}
11. c3 {[%clk 0:03:03.9]} 11... Nxe4 {[%clk 0:02:30.2]} 12. fxe4 {[%clk
0:03:05.8]} 12... e5 {[%clk 0:02:30.7]} 13. Be3 {[%clk 0:03:02.2]} 13... Bd6
{[%clk 0:02:26.7]} 14. Ng3 {[%clk 0:02:58.7]} 14... O-O {[%clk 0:02:20]} 15. Nf5
{[%clk 0:02:54.3]} 15... Bxf5 {[%clk 0:02:20.6]} 16. Rxf5 {[%clk 0:02:56.2]}
16... Qe7 {[%clk 0:02:00.4]} 17. Qf3 {[%clk 0:02:43]} 17... b5 {[%clk 0:01:54]}
18. Rf1 {[%clk 0:02:42.5]} 18... f6 {[%clk 0:01:51]} 19. Bc2 {[%clk 0:02:30.4]}
19... Nb6 {[%clk 0:01:48.8]} 20. Qh3 {[%clk 0:01:56.5]} 20... g6 {[%clk
0:01:42.5]} 21. R5f2 {[%clk 0:01:54.8]} 21... Nc4 {[%clk 0:01:42.7]} 22. Bh6
{[%clk 0:01:51.9]} 22... Rf7 {[%clk 0:01:37.2]} 23. b3 {[%clk 0:01:52.9]} 23...
Nb6 {[%clk 0:01:34.5]} 24. Rf3 {[%clk 0:01:40.9]} 24... c5 {[%clk 0:01:24.5]}
25. d5 {[%clk 0:01:37.6]} 25... c4 {[%clk 0:01:24.6]} 26. b4 {[%clk 0:01:38.5]}
26... a5 {[%clk 0:01:25.2]} 27. a3 {[%clk 0:01:36]} 27... axb4 {[%clk
0:01:25.9]} 28. axb4 {[%clk 0:01:37.9]} 28... Ra2 {[%clk 0:01:23.8]} 29. Bb1
{[%clk 0:01:33.1]} 29... Ra8 {[%clk 0:01:24.1]} 30. Be3 {[%clk 0:01:34]} 30...
Nd7 {[%clk 0:01:22.5]} 31. Rg3 {[%clk 0:01:33.1]} 31... Nf8 {[%clk 0:01:20.4]}
32. Qh6 {[%clk 0:01:26]} 32... Ra1 {[%clk 0:01:06.4]} 33. h4 {[%clk 0:01:24]}
33... Qd8 {[%clk 0:00:56.9]} 34. Kh2 {[%clk 0:01:19.3]} 34... Bc7 {[%clk
0:00:47]} 35. h5 {[%clk 0:01:12.2]} 35... Bb6 {[%clk 0:00:35.9]} 36. Bc5 {[%clk
0:01:03]} 36... Ra6 {[%clk 0:00:17.3]} 37. hxg6 {[%clk 0:00:53.2]} 37... Nxg6
{[%clk 0:00:17]} 38. Bc2 {[%clk 0:00:47.4]} 38... Qc7 {[%clk 0:00:12]} 39. d6
{[%clk 0:00:43.8]} 39... Qc8 {[%clk 0:00:08.4]} 40. Bd1 {[%clk 0:00:39]} 40...
Bxc5 {[%clk 0:00:05.9]} 41. Bg4 {[%clk 0:00:40.2]} 41... Qxg4 {[%clk 0:00:04.6]}
42. Rxg4 {[%clk 0:00:39.8]} 42... Bxd6 {[%clk 0:00:06]} 43. Rd1 {[%clk
0:00:37.3]} 43... Bf8 {[%clk 0:00:06.7]} 44. Rd8 {[%clk 0:00:38.2]} 44... Rd6
{[%clk 0:00:06.1]} 45. Rxg6+ {[%clk 0:00:16.7]} 45... hxg6 {[%clk 0:00:07]} 46.
Qxg6+ {[%clk 0:00:18.6]} 46... Rg7 {[%clk 0:00:05]} 47. Qe8 {[%clk 0:00:15.5]}
47... Rxd8 {[%clk 0:00:04.3]} 48. Qxd8 {[%clk 0:00:17.4]} 48... Rg4 {[%clk
0:00:04.4]} 49. Qxf6 {[%clk 0:00:15.6]} 49... Rg7 {[%clk 0:00:03.6]} 50. Qxe5
{[%clk 0:00:15.2]} 50... Rg6 {[%clk 0:00:04]} 51. Qxb5 {[%clk 0:00:15.9]} 51...
Bd6+ {[%clk 0:00:04]} 52. e5 {[%clk 0:00:17.1]} 52... Bf8 {[%clk 0:00:02.8]} 53.
Qxc4+ {[%clk 0:00:17.5]} 53... Kg7 {[%clk 0:00:03.8]} 54. Qd4 {[%clk 0:00:16.6]}
1-0

[Event "*** Titled Tuesday Blitz"]
[Site "Chess.com"]
[Date "2019.09.03"]
[Round "3"]
[White "GM_dmitrij"]
[Black "German_Bazeev"]
[Result "1-0"]
[WhiteElo "2966"]
[BlackElo "2716"]
[TimeControl "180+2"]
[EndTime "15:39:36 PDT"]
[Termination "GM_dmitrij won by resignation"]

1. e4 {[%clk 0:03:01.9]} 1... e5 {[%clk 0:02:52]} 2. Nf3 {[%clk 0:03:02.8]} 2...
Nc6 {[%clk 0:02:51.5]} 3. Bb5 {[%clk 0:03:03.9]} 3... a6 {[%clk 0:02:52.2]} 4.
Ba4 {[%clk 0:03:05.2]} 4... d6 {[%clk 0:02:49.9]} 5. O-O {[%clk 0:03:04]} 5...
Bd7 {[%clk 0:02:47]} 6. c3 {[%clk 0:03:05]} 6... Nf6 {[%clk 0:02:48]} 7. Re1
{[%clk 0:03:05.7]} 7... Be7 {[%clk 0:02:46]} 8. d4 {[%clk 0:03:05.7]} 8... O-O
{[%clk 0:02:47.2]} 9. h3 {[%clk 0:03:05]} 9... Re8 {[%clk 0:02:47.9]} 10. d5
{[%clk 0:03:01.5]} 10... Nb8 {[%clk 0:02:47.8]} 11. c4 {[%clk 0:02:58.9]} 11...
c5 {[%clk 0:02:41.8]} 12. Nc3 {[%clk 0:02:49.2]} 12... Bxa4 {[%clk 0:02:33.9]}
13. Qxa4 {[%clk 0:02:50.2]} 13... Nbd7 {[%clk 0:02:34.7]} 14. Be3 {[%clk
0:02:51.3]} 14... Rf8 {[%clk 0:02:24.1]} 15. b4 {[%clk 0:02:45.8]} 15... cxb4
{[%clk 0:02:11.6]} 16. Qxb4 {[%clk 0:02:47.7]} 16... Qc7 {[%clk 0:02:12.2]} 17.
Nd2 {[%clk 0:02:39.8]} 17... Nc5 {[%clk 0:02:05.1]} 18. Reb1 {[%clk 0:02:31]}
18... Nfd7 {[%clk 0:02:04.1]} 19. a4 {[%clk 0:02:16.6]} 19... Rfc8 {[%clk
0:01:53.3]} 20. a5 {[%clk 0:02:13.8]} 20... Rab8 {[%clk 0:01:54.3]} 21. Na4
{[%clk 0:02:10.5]} 21... Bd8 {[%clk 0:01:35.1]} 22. Nxc5 {[%clk 0:02:01.8]}
22... Nxc5 {[%clk 0:01:35.9]} 23. Qa3 {[%clk 0:01:36.9]} 23... g6 {[%clk
0:00:55.4]} 24. f3 {[%clk 0:01:35.3]} 24... Kg7 {[%clk 0:00:54.8]} 25. Rb4
{[%clk 0:01:35.7]} 25... b6 {[%clk 0:00:53.1]} 26. axb6 {[%clk 0:01:26.5]} 26...
Rxb6 {[%clk 0:00:55]} 27. Rxb6 {[%clk 0:01:18.2]} 27... Qxb6 {[%clk 0:00:56.9]}
28. Rb1 {[%clk 0:01:20]} 28... Qa5 {[%clk 0:00:51.7]} 29. Qxa5 {[%clk
0:00:40.4]} 29... Bxa5 {[%clk 0:00:53.6]} 30. Bxc5 {[%clk 0:00:42.3]} 30... dxc5
{[%clk 0:00:36.7]} 31. Nb3 {[%clk 0:00:30.9]} 31... Rb8 {[%clk 0:00:33.7]} 32.
Kf1 {[%clk 0:00:32]} 32... Bc7 {[%clk 0:00:22.5]} 33. Ke2 {[%clk 0:00:27.6]}
33... a5 {[%clk 0:00:23.8]} 34. Nd2 {[%clk 0:00:23.3]} 34... Rb4 {[%clk
0:00:22.6]} 35. Kd3 {[%clk 0:00:21]} 35... Kf8 {[%clk 0:00:22.9]} 36. Ra1 {[%clk
0:00:19.1]} 36... a4 {[%clk 0:00:22.8]} 37. Nb1 {[%clk 0:00:14.6]} 37... Ba5
{[%clk 0:00:23.8]} 38. Nd2 {[%clk 0:00:10.9]} 38... Ke7 {[%clk 0:00:24.2]} 39.
Kc2 {[%clk 0:00:11.1]} 39... f5 {[%clk 0:00:23.6]} 40. Ra2 {[%clk 0:00:12.5]}
40... Kd6 {[%clk 0:00:24.5]} 41. Kd3 {[%clk 0:00:12.4]} 41... h5 {[%clk
0:00:24.6]} 42. exf5 {[%clk 0:00:13.1]} 42... gxf5 {[%clk 0:00:25.7]} 43. g4
{[%clk 0:00:15]} 43... e4+ {[%clk 0:00:24.1]} 44. fxe4 {[%clk 0:00:15.8]} 44...
fxg4 {[%clk 0:00:25.2]} 45. hxg4 {[%clk 0:00:17.7]} 45... hxg4 {[%clk
0:00:27.1]} 46. Nf1 {[%clk 0:00:17.2]} 46... Rb3+ {[%clk 0:00:27.4]} 47. Kc2
{[%clk 0:00:17.3]} 47... Rc3+ {[%clk 0:00:27.8]} 48. Kb2 {[%clk 0:00:18.7]}
48... a3+ {[%clk 0:00:22.7]} 49. Rxa3 {[%clk 0:00:17]} 49... Rxa3 {[%clk
0:00:23.7]} 50. Kxa3 {[%clk 0:00:18.9]} 50... Ke5 {[%clk 0:00:19.5]} 51. Ka4
{[%clk 0:00:18.2]} 51... Bd8 {[%clk 0:00:18.7]} 52. Kb5 {[%clk 0:00:19]} 52...
Be7 {[%clk 0:00:19.3]} 53. Ng3 {[%clk 0:00:19.1]} 53... Kf4 {[%clk 0:00:19.9]}
54. Nf5 {[%clk 0:00:18.4]} 54... Kxe4 {[%clk 0:00:18]} 55. Nxe7 {[%clk
0:00:18.3]} 55... g3 {[%clk 0:00:17.4]} 56. d6 {[%clk 0:00:19.7]} 56... g2
{[%clk 0:00:18.3]} 57. d7 {[%clk 0:00:21.6]} 57... g1=Q {[%clk 0:00:20.2]} 58.
d8=Q {[%clk 0:00:23.5]} 1-0